Workbook

Sheet паспорт
A1: ПАТ "УКРТРАНСГАЗ" | G1: ПАСПОРТ ФІЗИКО-ХІМІЧНИХ ПОКАЗНИКІВ ПРИРОДНОГО ГАЗУ № 206
A2: Філія "УМГ "Лівітрансгаз" | G2: переданого Дашавським ВУПЗГ та прийнятого ПАТ "Львівгаз" | Z2: Маршрут №206
A3: Дашавське ВУПЗГ
A4: Вимірювальна хіміко-аналітична лабораторія
A5: Свідоцтво № РЛ 036/15 чинне до 15 квітня 2019 р. | K5: по газопроводу "Івацевичі- Долина ІІІ,Івацевичі-Долина ІІ" | V5: за період з | X5: 2017-09-01 | Z5: по | AA5: 2017-09-30
A7: Число місяця | B7: Компонентний склад, % мол. | N7: Фізико-хімічні показники газу обчислені на основі компонентного складу, 101,325 кПа | X7: Температура точки роси за вологою (Р = 3.92 МПа), °С | Y7: Температура точки роси за вуглеводнями, °С | Z7: Вміст сірководню, г/м3 | AA7: Вміст меркаптанової сірки, г/м3 | AB7: Вміст механічних домішок, г/м3
N8: Густина абсолютна, кг/м3,при 20 °С, | O8: Температура вимірювання/згоряння при 20/25°С
B9: метан, С1 | C9: етан, С2 | D9: пропан, С3 | E9: ізо-бутан, і-С4 | F9: н-бутан, н-С4 | G9: нео-пентан, нео-С5 | H9: ізо-пентан, і-С5 | I9: н-пентан, н-С5 | J9: гексани та вищі, С6+ | K9: кисень, О2 | L9: азот, N2 | M9: діоксид вуглецю, CО2 | O9: Теплота згоряння нижча | R9: Теплота згоряння вища | U9: Число Воббе вище
O10: ккал/м³ | P10: МДж/м³ | Q10: кВт⋅год/м³ | R10: ккал/м³ | S10: МДж/м³ | T10: кВт⋅год/м³ | U10: ккал/м³ | V10: МДж/м³ | W10: кВт⋅год/м³
A11: 1 | O11: =P11*238.8459 -> 8264.06814 | P11: 34.6 | Q11: =P11/3.6 -> 9.611111111 | R11: =S11*238.8459 -> 9152.574888 | S11: 38.32 | T11: =S11/3.6 -> 10.64444444 | U11: 11567 | V11: 48.43 | W11: =V11/3.6 -> 13.45277778 | AC11: =SUM(B11:M11)+$K$42+$N$42 -> 0
A12: 2 | O12: =P12*238.8459 -> 8264.06814 | P12: 34.6 | Q12: 9.611111111 | R12: =S12*238.8459 -> 9152.574888 | S12: 38.32 | T12: 10.64444444 | U12: 11567 | V12: 48.43 | W12: 13.45277778 | AC12: 0
A13: 3 | O13: 8264.06814 | P13: 34.6 | Q13: 9.611111111 | R13: 9152.574888 | S13: 38.32 | T13: 10.64444444 | U13: 11567 | V13: 48.43 | W13: 13.45277778 | AC13: 0 | AD13: =IF(AC13=100,"ОК"," ") -> 
A14: 4 | O14: 8264.06814 | P14: 34.6 | Q14: 9.611111111 | R14: 9152.574888 | S14: 38.32 | T14: 10.64444444 | U14: 11567 | V14: 48.43 | W14: 13.45277778 | AC14: 0 | AD14: =IF(AC14=100,"ОК"," ") -> 
A15: 5 | B15: 94.216 | C15: 2.998 | D15: 0.8815 | E15: 0.1309 | F15: 0.1429 | G15: 0.0017 | H15: 0.0312 | I15: 0.0249 | J15: 0.0371 | K15: 0.0098 | L15: 0.9762 | M15: 0.5498 | N15: 0.7147 | O15: 8235.406632 | P15: 34.48 | Q15: 9.577777778 | R15: 9126.301839 | S15: 38.21 | T15: 10.61388889 | U15: 11849.84 | V15: 49.61 | W15: 13.78055556 | AC15: 100 | AD15: ОК
A16: 6 | O16: 8235.406632 | P16: 34.48 | Q16: 9.577777778 | R16: 9126.301839 | S16: 38.21 | T16: 10.61388889 | U16: 11850 | V16: 49.61 | W16: 13.78055556 | AC16: 0
A17: 7 | O17: 8235.406632 | P17: 34.48 | Q17: 9.577777778 | R17: 9126.301839 | S17: 38.21 | T17: 10.61388889 | U17: 11850 | V17: 49.61 | W17: 13.78055556 | AC17: 0
A18: 8 | B18: 90.1571 | C18: 4.7358 | D18: 1.1267 | E18: 0.126 | F18: 0.1949 | G18: 0.0033 | H18: 0.0552 | I18: 0.044 | J18: 0.0774 | K18: 0.0057 | L18: 1.67 | M18: 1.8039 | N18: 0.749 | O18: 8249.737386 | P18: 34.54 | Q18: 9.594444444 | R18: 9133.467216 | S18: 38.24 | T18: 10.62222222 | U18: 11584.77 | V18: 48.5 | W18: 13.47222222 | AC18: 100 | AD18: ОК
A19: 9 | O19: 8249.737386 | P19: 34.54 | Q19: 9.594444444 | R19: 9133.467216 | S19: 38.24 | T19: 10.62222222 | U19: 11585 | V19: 48.5 | W19: 13.47222222 | AC19: 0
A20: 10 | O20: 8249.737386 | P20: 34.54 | Q20: =P20/3.6 -> 9.594444444 | R20: 9133.467216 | S20: 38.24 | T20: =S20/3.6 -> 10.62222222 | U20: 11585 | V20: 48.5 | W20: 13.47222222 | AC20: 0
A21: 11 | O21: 8249.737386 | P21: 34.54 | Q21: 9.594444444 | R21: 9133.467216 | S21: 38.24 | T21: 10.62222222 | U21: 11585 | V21: 48.5 | W21: 13.47222222 | AC21: 0
A22: 12 | B22: 90.363 | C22: 4.656 | D22: 1.1162 | E22: 0.1249 | F22: 0.1914 | G22: 0.0032 | H22: 0.0532 | I22: 0.042 | J22: 0.0732 | K22: 0.0074 | L22: 1.6077 | M22: 1.7618 | N22: 0.7473 | O22: 8249.737386 | P22: 34.54 | Q22: 9.594444444 | R22: 9133.467216 | S22: 38.24 | T22: 10.62222222 | U22: 11596.49 | V22: 48.55 | W22: 13.48611111 | AC22: 100 | AD22: ОК
A23: 13 | O23: 8249.737386 | P23: 34.54 | Q23: 9.594444444 | R23: 9133.467216 | S23: 38.24 | T23: 10.62222222 | U23: 11596 | V23: 48.55 | W23: 13.48611111 | AC23: 0
A24: 14 | O24: 8249.737386 | P24: 34.54 | Q24: 9.594444444 | R24: 9133.467216 | S24: 38.24 | T24: 10.62222222 | U24: 11596 | V24: 48.55 | W24: 13.48611111 | AC24: 0
A25: 15 | O25: 8249.737386 | P25: 34.54 | Q25: 9.594444444 | R25: 9133.467216 | S25: 38.24 | T25: 10.62222222 | U25: 11596 | V25: 48.55 | W25: 13.48611111 | AC25: 0
A26: 16 | O26: 8249.737386 | P26: 34.54 | Q26: =P26/3.6 -> 9.594444444 | R26: 9133.467216 | S26: 38.24 | T26: =S26/3.6 -> 10.62222222 | U26: 11596 | V26: 48.55 | W26: 13.48611111 | AC26: 0
A27: 17 | O27: 8249.737386 | P27: 34.54 | Q27: 9.594444444 | R27: 9133.467216 | S27: 38.24 | T27: 10.62222222 | U27: 11596 | V27: 48.55 | W27: 13.48611111 | AC27: 0
A28: 18 | O28: 8249.737386 | P28: 34.54 | Q28: 9.594444444 | R28: 9133.467216 | S28: 38.24 | T28: 10.62222222 | U28: 11596 | V28: 48.55 | W28: 13.48611111 | AC28: 0
A29: 19 | B29: 90.5971 | C29: 4.5451 | D29: 1.1037 | E29: 0.1255 | F29: 0.1909 | G29: 0.0031 | H29: 0.0538 | I29: 0.0427 | J29: 0.0734 | K29: 0.0051 | L29: 1.5588 | M29: 1.7008 | N29: 0.7455 | O29: 8249.737386 | P29: 34.54 | Q29: 9.594444444 | R29: 9133.467216 | S29: 38.24 | T29: 10.62222222 | U29: 11611.52 | V29: 48.61 | W29: 13.50277778 | Z29: 0 | AA29: 0 | AB29: 0 | AC29: 100 | AD29: ОК
A30: 20 | O30: 8249.737386 | P30: 34.54 | Q30: 9.594444444 | R30: 9133.467216 | S30: 38.24 | T30: 10.62222222 | U30: 11612 | V30: 48.61 | W30: 13.50277778 | AC30: 0 | AD30: =IF(AC30=100,"ОК"," ") -> 
A31: 21 | O31: 8249.737386 | P31: 34.54 | Q31: 9.594444444 | R31: 9133.467216 | S31: 38.24 | T31: 10.62222222 | U31: 11612 | V31: 48.61 | W31: 13.50277778 | AC31: 0
A32: 22 | O32: 8249.737386 | P32: 34.54 | Q32: 9.594444444 | R32: 9133.467216 | S32: 38.24 | T32: 10.62222222 | U32: 11612 | V32: 48.61 | W32: 13.50277778 | AC32: 0
A33: 23 | O33: 8249.737386 | P33: 34.54 | Q33: =P33/3.6 -> 9.594444444 | R33: 9133.467216 | S33: 38.24 | T33: =S33/3.6 -> 10.62222222 | U33: 11612 | V33: 48.61 | W33: 13.50277778 | AC33: 0 | AD33: =IF(AC33=100,"ОК"," ") -> 
A34: 24 | O34: 8249.737386 | P34: 34.54 | Q34: 9.594444444 | R34: 9133.467216 | S34: 38.24 | T34: 10.62222222 | U34: 11612 | V34: 48.61 | W34: 13.50277778 | AC34: 0
A35: 25 | O35: 8249.737386 | P35: 34.54 | Q35: 9.594444444 | R35: 9133.467216 | S35: 38.24 | T35: 10.62222222 | U35: 11612 | V35: 48.61 | W35: 13.50277778 | AC35: 0
A36: 26 | B36: 91.657 | C36: 4.0561 | D36: 1.0309 | E36: 0.1245 | F36: 0.1779 | G36: 0.0028 | H36: 0.049 | I36: 0.039 | J36: 0.0728 | K36: 0.0055 | L36: 1.3583 | M36: 1.4262 | N36: 0.7371 | O36: 8244 | P36: 34.51 | Q36: 9.586111111 | R36: 9129 | S36: 38.22 | T36: =S36/3.6 -> 10.61666667 | U36: 11670 | V36: 48.86 | W36: 13.57222222 | AC36: 100 | AD36: ОК
A37: 27 | O37: 8244 | P37: 34.51 | Q37: 9.586111111 | R37: 9129 | S37: 38.22 | T37: 10.61666667 | U37: 11670 | V37: 48.86 | W37: 13.57222222 | AC37: 0
A38: 28 | O38: 8244 | P38: 34.51 | Q38: 9.586111111 | R38: 9129 | S38: 38.22 | T38: 10.61666667 | U38: 11670 | V38: 48.86 | W38: 13.57222222 | AC38: 0
A39: 29 | O39: 8244 | P39: 34.51 | Q39: =P39/3.6 -> 9.586111111 | R39: 9129 | S39: 38.22 | T39: =S39/3.6 -> 10.61666667 | U39: 11670 | V39: 48.86 | W39: 13.57222222 | AC39: 0
A40: 30 | O40: 8244 | P40: 34.51 | Q40: =P40/3.6 -> 9.586111111 | R40: 9129 | S40: 38.22 | T40: =S40/3.6 -> 10.61666667 | U40: 11670 | V40: 48.86 | W40: 13.57222222 | AC40: 0
AC41: 0
A42: Рівень одоризації відповідає чинним нормативним документам | O42: =SUMPRODUCT(O11:O41,'[1] розрахунок'!E7:E37)/'[1] розрахунок'!E38 -> 8248.527003 | P42: =SUMPRODUCT(P11:P41,'[1] розрахунок'!E7:E37)/'[1] розрахунок'!E38 -> 34.5343158 | Q42: =SUMPRODUCT(Q11:Q41,'[1] розрахунок'!E7:E37)/'[1] розрахунок'!E38 -> 9.592865501 | R42: =SUMPRODUCT(R11:R41,'[1] розрахунок'!E7:E37)/'[1] розрахунок'!E38 -> 9133.189312 | S42: =SUMPRODUCT(S11:S41,'[1] розрахунок'!E7:E37)/'[1] розрахунок'!E38 -> 38.23870275 | T42: =SUMPRODUCT(T11:T41,'[1] розрахунок'!E7:E37)/'[1] розрахунок'!E38 -> 10.62186188
H43: Середньозважене значення теплоти згоряння:
B46: Начальник управління Дашавського ВУПЗГ Штинда М.В. 0210.2017р.
C47: Підрозділу підприємства, якому підпорядкована лабораторія | O47: прізвище | R47: підпис | V47: дата
B48: Технік-лаборантІі кат. Гойсак О.П 02.10.2017р.
C49: Лабораторія, де здійснювалось вимірювання газу | O49: прізвище | R49: підпис | V49: дата
B50: Провідний диспетчер з транспортування газу Гук П.М. 02.10.2017р.
C51: Підрозділу, відповідального за облік газу за маршрутом | O51: прізвище | R51: підпис | V51: дата

Sheet додаток
A2: Додаток до Паспорту фізико-хімічних показників природного газу | D2: Маршруту №206
A4: Область | B4: ПСГ прямий споживач | C4: Cередньозважене значення вищої теплоти згоряння
C5: МДж/м³ | D5: ккал/м³ | E5: кВт*год./м³
A6: Львівська область | B6: АГРС-120 | C6: 38.24 | D6: 9133 | E6: 10.62
C7: 0 | D7: 0 | E7: 0
A8: Середньозважене значення вищої теплоти згоряння Маршруту №206 | C8: 38.24 | D8: 9133 | E8: 10.62
A12: Начальник управління Дашавського ВУПЗГ Штинда М.В. | E12: 02.10.2017р.
A13: Підрозділу підприємства, якому підпорядкована лабораторія | D13: прізвище | E13: підпис | F13: дата
A14: Технік-лаборантІІ кат. Гойсак О.П. | E14: 02.10.2017р.
A15: Лабораторія, де здійснювалось вимірювання газу | D15: прізвище | E15: підпис | F15: дата
A16: Провідний диспетчер з транспортування газу | C16: Гук П.М. | E16: 02.10.2017р.
A17: Підрозділу, відповідального за облік газу за маршрутом | D17: прізвище | E17: підпис | F17: дата

Sheet variablesList (hidden)
A1: 3 | B1: x:\gaysin | C1: 10, 11, 24, 25, 127, 128, 132, 180, 207, 215 | D1: x:\
B2: x:\Illinci
B3: x:\Talne
